bitfinex-derivatives/quotes_ETHF0:USTF0_20250105
["timestamp","ask_amount","ask_price","bid_price","bid_amount"]
[1736100768052,3.22275783,3619.8,3619.4,2.08206136]
[1736100768258,3.22275783,3619.8,3619.7,5.53856136]
[1736100769958,0.24867,3620.2,3620.0,0.24868]
[1736100770159,0.24866,3620.3,3620.1,0.66597]
[1736100771156,0.24866,3620.3,3620.1,0.4173]
[1736100772264,0.24866,3620.2,3620.1,0.4173]
[1736100773773,0.24866,3620.3,3620.1,0.4173]
[1736100773977,0.24866,3620.2,3620.1,0.4173]
[1736100776567,0.24866,3620.3,3620.1,0.4173]
[1736100776772,0.24866,3620.2,3620.1,0.4173]
[1736100777873,3.22275783,3620.5,3620.1,0.4173]
[1736100778268,0.24866,3620.2,3620.1,0.4173]
[1736100783672,8.92881919,3620.6,3619.9,1.5291]
[1736100784077,0.24868,3620.1,3619.9,1.5291]
[1736100784375,5.70606136,3620.6,3619.9,1.5291]
[1736100784575,0.24868,3620.1,3619.9,1.5291]
[1736100784976,5.70606136,3620.6,3619.6,0.4305]
[1736100785171,2.08206136,3620.0,3619.5,0.4458]
[1736100785363,0.8177,3619.9,3619.5,0.69451]
[1736100785569,0.2487,3619.7,3619.5,0.69451]
[1736100786476,0.8177,3619.9,3619.5,0.69451]
[1736100786677,0.2487,3619.7,3619.5,0.69451]
[1736100787574,0.2487,3619.6,3619.5,0.69451]
[1736100789671,0.2487,3619.6,3619.5,0.4458]
[1736100790773,0.2487,3619.6,3619.5,0.69451]
[1736100791380,0.2487,3619.6,3619.5,0.4458]
[1736100794591,0.2487,3619.6,3619.5,0.69451]
[1736100795380,0.24869,3619.8,3619.6,0.2487]
[1736100795590,0.2487,3619.7,3619.6,0.2487]
[1736100796691,0.2487,3619.7,3619.5,0.69451]
[1736100796887,0.8177,3619.9,3619.5,0.24871]
[1736100797184,0.24872,3619.4,3619.3,3.2078]
[1736100797389,0.24873,3619.2,3619.1,4.33090091]
[1736100798185,1.2611,3619.3,3618.9,3.2078]
[1736100798377,0.24874,3619.0,3618.9,3.2078]
[1736100802383,2.08206136,3619.1,3618.5,4.33090091]
[1736100802585,0.24875,3618.9,3618.5,4.33090091]
[1736100803097,0.24875,3618.9,3618.3,4.33090091]
[1736100804498,0.66350948,3618.9,3618.2,6.48410885]
[1736100804690,0.66350948,3618.9,3618.0,0.65511]
[1736100804891,0.66350948,3618.9,3618.0,0.4063]
[1736100805792,0.66350948,3618.9,3618.0,0.65511]
[1736100806100,3.46700499,3618.9,3618.0,0.4063]
[1736100806492,9.97179903,3618.9,3618.0,0.4063]
[1736100806797,0.24881,3618.1,3618.0,0.4063]
[1736100806998,0.2488,3618.2,3618.0,0.4063]
[1736100807199,0.6835,3618.2,3618.0,0.4063]
[1736100810097,0.4347,3618.2,3618.0,0.4063]
[1736100810298,0.24881,3618.1,3618.0,0.4063]
[1736100811293,0.24881,3618.0,3617.9,0.4354]
[1736100812494,0.4347,3618.2,3617.9,0.4354]
[1736100812696,0.24881,3618.1,3617.9,0.4354]
[1736100813609,0.24881,3618.1,3618.0,1.0]
[1736100819207,1.25763877,3618.1,3618.0,1.0]
[1736100821401,2.26646754,3618.1,3618.0,1.0]
[1736100821606,9.33654601,3618.1,3618.0,0.52579478]
[1736100823009,0.24881,3618.1,3618.0,0.52579478]
[1736100823210,2.33553358,3618.1,3618.0,0.52579478]
[1736100823807,6.67485499,3618.3,3618.0,0.77460478]
[1736100824010,0.2488,3618.2,3618.1,0.8427]
[1736100824203,6.42605499,3618.3,3618.1,1.2572]
[1736100824204,6.67485499,3618.3,3618.1,1.2572]
[1736100824406,0.2488,3618.2,3618.1,1.2572]
[1736100824605,3.2078,3618.3,3618.1,1.2572]
[1736100825507,0.2488,3618.2,3618.1,1.2572]
[1736100825804,3.2078,3618.3,3618.1,1.2572]
[1736100826011,3.2078,3618.8,3618.1,1.2572]
[1736100826210,0.24877,3618.7,3618.4,0.24879]
[1736100826608,0.24878,3618.6,3618.3,0.24879]
[1736100827509,3.45656,3618.8,3618.5,0.24877]
[1736100827717,0.24876,3618.9,3618.6,0.4297]
[1736100827909,0.24876,3618.9,3618.7,0.8367]
[1736100828413,0.4292,3619.2,3618.7,0.8367]
[1736100828623,0.24876,3618.8,3618.7,0.8367]
[1736100833918,2.51592358,3619.2,3618.7,0.8367]
[1736100834116,0.24876,3618.8,3618.7,0.8367]
[1736100841023,0.24877,3618.7,3618.1,4.33090091]
[1736100841227,0.2488,3618.3,3618.1,5.62530091]
[1736100841528,0.2488,3618.2,3618.1,5.62530091]
[1736100842328,0.2488,3618.2,3618.1,5.18870091]
[1736100842527,0.2488,3618.2,3618.1,4.33090091]
[1736100842923,0.24881,3618.1,3618.0,0.52579478]
[1736100845233,1.13691,3618.1,3618.0,0.52579478]
[1736100848522,7.98545727,3618.1,3618.0,0.52579478]
[1736100849431,7.98545727,3618.1,3617.5,0.445]
[1736100849432,0.24886,3617.3,3617.2,4.33090091]
[1736100849633,3.45666,3617.3,3617.2,4.33090091]
[1736100850928,10.36487584,3617.3,3617.2,4.33090091]
[1736100851129,0.24892,3616.5,3616.4,0.4362]
[1736100851624,3.2078,3616.9,3616.4,0.4362]
[1736100851826,0.24892,3616.6,3616.4,0.4362]
[1736100852234,0.24892,3616.5,3616.4,0.4362]
[1736100854836,7.36099556,3616.8,3616.4,0.4362]
[1736100855027,0.24891,3616.6,3616.4,0.4362]
[1736100855231,7.36099556,3616.8,3616.4,0.4362]
[1736100855430,0.24891,3616.6,3616.4,0.4362]
[1736100855632,0.2489,3616.7,3616.4,0.4362]
[1736100855831,0.24891,3616.7,3616.4,0.4362]
[1736100856238,0.24891,3616.7,3616.4,1.4362]
[1736100856433,0.24891,3616.6,3616.4,1.4362]
[1736100857138,0.24892,3616.5,3616.4,1.4362]
[1736100859030,2.08672358,3617.0,3616.4,1.4362]
[1736100859031,5.29452358,3617.0,3616.4,1.4362]
[1736100859338,0.24892,3616.5,3616.4,1.4362]
[1736100861336,0.24891,3616.6,3616.4,1.4362]
[1736100862339,0.2489,3616.8,3616.4,1.68512]
[1736100863434,3.2078,3617.0,3616.4,1.4362]
[1736100863638,0.2489,3616.8,3616.5,0.24891]
[1736100863828,0.2489,3616.8,3616.4,1.4362]
[1736100864031,0.2489,3616.8,3616.4,1.68512]
[1736100864438,0.2489,3616.8,3616.5,0.24892]
[1736100864834,0.4185,3617.1,3616.4,1.4362]
[1736100865043,0.4185,3617.1,3616.5,0.24892]
[1736100865244,0.2489,3616.8,3616.5,0.24892]
[1736100868344,0.2489,3616.7,3616.5,0.24892]
[1736100869345,0.24891,3616.6,3616.4,1.68512]
[1736100869547,0.24891,3616.6,3616.4,1.4362]
[1736100870436,0.24892,3616.5,3616.4,1.4362]
[1736100872746,0.24666959,3616.5,3616.4,1.4362]
[1736100874041,1.0407,3617.1,3616.4,1.4362]
[1736100874042,0.4185,3617.1,3616.4,1.4362]
[1736100874248,0.8458,3617.2,3616.8,0.24889]
[1736100874443,0.24888,3617.0,3616.9,0.4363]
[1736100875047,0.24888,3617.1,3616.9,0.4363]
[1736100875244,0.24888,3617.1,3616.9,0.8595]
[1736100876148,0.65447,3617.2,3616.9,1.10838]
[1736100876341,0.65447,3617.2,3616.9,0.8595]
[1736100876644,0.66416,3617.4,3616.9,0.8595]
[1736100876943,0.66416,3617.4,3617.0,0.4425]
[1736100876944,0.4153,3617.4,3617.0,0.4425]
[1736100877141,0.66416,3617.4,3617.0,0.69138]
[1736100878039,0.24885,3617.5,3617.1,0.24888]
[1736100879345,0.24886,3617.4,3617.1,0.24888]
[1736100879846,0.4399,3617.6,3617.0,3.6503]
[1736100880040,0.24885,3617.5,3617.1,0.24888]
[1736100880236,0.44,3617.8,3617.0,3.6503]
[1736100880445,0.44,3617.8,3617.6,0.24884]
[1736100880639,0.8574,3618.1,3617.7,0.858]
[1736100880841,0.24882,3618.0,3617.7,0.858]
[1736100881640,0.24881,3618.0,3617.7,0.858]
[1736100881949,0.4257,3618.1,3617.7,0.858]
[1736100881950,0.24883,3617.9,3617.7,0.858]
[1736100882747,0.24882,3618.0,3617.7,0.858]
[1736100883246,0.24882,3617.9,3617.7,0.858]
[1736100884850,0.4257,3618.1,3617.8,0.24882]
[1736100885038,0.4283,3618.2,3617.7,0.858]
[1736100885242,0.4283,3618.2,3617.9,0.24882]
[1736100885444,3.45659,3618.4,3617.8,2.08672358]
[1736100885648,3.21501785,3618.6,3617.9,3.2078]
[1736100885844,0.24878,3618.5,3618.1,0.2488]
[1736100886049,0.24878,3618.5,3618.2,0.4406]
[1736100886250,0.24878,3618.5,3618.3,0.4389]
[1736100886958,3.46378785,3618.7,3618.3,1.77869]
[1736100887447,3.46378785,3618.7,3618.4,0.24879]
[1736100887448,0.24877,3618.7,3618.4,0.24879]
[1736100887656,3.653,3618.8,3618.3,1.5299]
[1736100887849,0.69396,3618.8,3618.4,0.24879]
[1736100888057,0.4452,3618.8,3618.5,0.24878]
[1736100888256,0.69396,3618.8,3618.4,0.24878]
[1736100888958,2.08672358,3618.6,3618.2,0.4332]
[1736100889153,3.2078,3618.4,3617.9,1.091]
[1736100889346,0.24881,3618.1,3617.9,1.091]
[1736100889856,0.694,3618.2,3617.9,1.091]
[1736100890156,0.4452,3618.2,3617.9,1.091]
[1736100890455,0.24883,3617.8,3617.7,4.33090091]
[1736100890653,0.24881,3618.1,3617.6,0.412]
[1736100891055,0.24881,3618.1,3617.8,0.24883]
[1736100891259,0.4452,3618.2,3617.8,0.24883]
[1736100891554,0.24882,3618.0,3617.7,0.24883]
[1736100892146,0.4452,3618.2,3617.6,0.412]
[1736100892356,0.2488,3618.2,3618.0,0.24881]
[1736100892557,0.2488,3618.2,3618.1,0.8603]
[1736100892763,0.2488,3618.2,3618.1,1.2832]
[1736100893056,0.2488,3618.3,3618.1,1.53201]
[1736100893364,2.14196259,3618.9,3618.2,1.091]
[1736100893561,0.24876,3618.8,3618.5,0.24878]
[1736100893959,0.24876,3618.8,3618.6,0.4339]
[1736100894853,0.0375997,3618.7,3618.6,0.4339]
[1736100895657,0.0375997,3618.7,3618.6,0.68267]
[1736100895861,0.0375997,3618.7,3618.6,0.4339]
[1736100896360,0.0375997,3618.7,3618.6,0.68267]
[1736100896661,2.14196259,3619.3,3619.2,0.24873]
[1736100896965,2.14196259,3619.3,3619.2,6.63425358]
[1736100897360,2.39064259,3620.0,3619.6,0.2487]
[1736100897556,0.24868,3619.9,3619.7,0.8534]
[1736100897964,0.24869,3619.8,3619.7,0.8534]
[1736100898260,0.24869,3619.8,3619.2,4.2988]
[1736100898261,0.2487,3619.7,3619.2,4.2988]
[1736100898462,0.24872,3619.4,3619.2,4.2988]
[1736100899357,0.4388,3619.5,3619.2,4.54753]
[1736100899565,0.4388,3619.5,3619.2,4.2988]
[1736100899760,0.68752,3619.5,3619.2,4.2988]
[1736100899957,0.4388,3619.5,3619.2,4.54753]
[1736100900257,0.68751,3619.5,3619.2,4.54753]
[1736100900450,5.72942317,3620.1,3619.2,4.2988]
[1736100900663,0.24869,3619.8,3619.2,6.38552358]
[1736100901059,0.4388,3620.0,3619.2,4.54753]
[1736100901359,0.24875,3618.9,3618.8,3.2078]
[1736100901555,2.08672358,3619.5,3618.8,3.2078]
[1736100901762,0.24875,3619.0,3618.8,3.2078]
[1736100902258,0.24875,3618.9,3618.8,3.2078]
[1736100902461,2.08672358,3619.2,3618.6,1.091]
[1736100902654,3.2078,3618.8,3618.2,1.091]
[1736100902859,0.2488,3618.3,3618.2,1.091]
[1736100903163,0.24881,3618.0,3617.9,0.444]
[1736100903362,0.24882,3618.0,3617.7,1.091]
[1736100903663,0.24881,3618.1,3617.7,1.33983]
[1736100903858,3.2078,3618.4,3617.7,1.091]
[1736100904051,0.24882,3618.0,3617.7,1.091]
[1736100904254,0.24882,3618.0,3617.7,1.33983]
[1736100905164,0.24881,3618.1,3617.8,0.24882]
[1736100905365,0.8578,3618.5,3617.7,1.091]
[1736100905582,0.24881,3618.0,3617.7,1.33983]
[1736100905859,0.24881,3618.0,3617.7,0.24883]
[1736100906063,0.2488,3618.3,3617.9,0.24881]
[1736100906662,0.2488,3618.3,3617.7,2.08672358]
[1736100906861,0.2488,3618.3,3617.9,0.24881]
[1736100907369,0.2488,3618.2,3617.8,0.24882]
[1736100908268,0.2488,3618.3,3617.8,0.24883]
[1736100908666,4.0656,3618.5,3617.8,0.24883]
[1736100908667,4.0656,3618.5,3617.8,1.091]
[1736100908869,0.2488,3618.3,3617.9,0.24882]
[1736100909070,0.24879,3618.3,3618.0,0.4304]
[1736100909266,0.24879,3618.4,3618.0,0.4304]
[1736100909468,0.2488,3618.3,3618.0,0.4304]
[1736100910772,0.2488,3618.2,3618.0,0.4304]
[1736100912566,0.24881,3618.1,3617.8,1.091]
[1736100912774,0.2488,3618.2,3617.8,1.33982]
[1736100915275,0.8578,3618.5,3617.8,1.091]
[1736100915681,0.2488,3618.2,3617.8,1.33982]
[1736100916074,0.2488,3618.3,3617.9,0.24881]
[1736100916786,0.2488,3618.2,3617.9,0.24881]
[1736100916983,0.24881,3618.1,3617.8,1.33982]
[1736100918289,0.2488,3618.2,3617.9,0.24882]
[1736100918690,0.2488,3618.2,3617.8,1.33982]
[1736100919085,0.2488,3618.3,3618.0,0.24881]
[1736100919391,0.8578,3618.5,3618.1,0.4329]
[1736100919594,3.2078,3618.6,3618.1,0.8757]
[1736100919797,3.2078,3618.6,3618.2,0.2488]
[1736100919798,0.24878,3618.5,3618.2,0.2488]
[1736100920088,0.24878,3618.5,3618.3,0.4103]
[1736100920300,0.24877,3618.7,3618.3,0.65909]
[1736100920592,0.24878,3618.6,3618.3,0.65909]
[1736100921092,0.24877,3618.7,3618.3,0.4103]
[1736100921292,2.14196259,3618.9,3618.3,2.49702358]
[1736100921486,0.24875,3618.9,3618.6,0.24877]
[1736100921692,2.39071259,3619.0,3618.7,0.4074]
[1736100921884,2.39071259,3619.0,3618.9,3.2078]
[1736100921885,2.14196259,3619.0,3618.9,3.2078]
[1736100922187,2.14196259,3619.0,3618.9,3.45655]
[1736100923191,0.24873,3619.3,3618.9,3.45655]
[1736100923587,0.24873,3619.3,3619.1,0.24874]
[1736100923791,2.96632358,3619.5,3619.0,0.4248]
[1736100923987,0.8796,3619.5,3619.0,0.4248]
[1736100924190,0.24873,3619.2,3619.0,0.4248]
[1736100926194,3.02156259,3619.5,3619.0,0.4248]
[1736100926395,0.24873,3619.3,3619.0,0.67354]
[1736100927390,2.57826259,3619.5,3619.0,0.67354]
[1736100927693,0.24872,3619.3,3619.0,0.67354]
[1736100928097,0.24872,3619.3,3619.0,0.4248]
[1736100928492,0.4363,3619.5,3619.0,0.4248]
[1736100928898,0.24872,3619.4,3619.0,0.67354]
[1736100929698,0.24873,3619.3,3619.0,0.4248]
[1736100931494,0.4363,3619.5,3619.0,0.4248]
[1736100931697,0.24873,3619.2,3619.0,0.4248]
[1736100931893,0.24873,3619.3,3619.0,0.4248]
[1736100932698,0.24872,3619.4,3619.0,0.67354]
[1736100932899,0.24873,3619.3,3619.0,0.67354]
[1736100933495,0.24873,3619.3,3619.0,0.4248]
[1736100933897,0.4363,3619.5,3619.0,0.4248]
[1736100933898,0.24872,3619.4,3619.0,0.4248]
[1736100934105,0.68502,3619.5,3619.1,0.24873]
[1736100934399,2.14196259,3619.6,3619.0,2.51152358]
[1736100934593,2.14196259,3619.6,3619.5,0.24871]
[1736100935401,2.14196259,3619.8,3619.6,0.2487]
[1736100936698,2.14196259,3619.8,3619.7,0.4329]
[1736100936896,2.39065259,3619.8,3619.7,0.4329]
[1736100937091,0.24869,3619.8,3619.7,0.4329]
[1736100938107,0.24869,3619.8,3619.5,0.24871]
[1736100938703,0.24872,3619.4,3619.3,1.091]
[1736100939302,0.4287,3619.9,3619.3,1.091]
[1736100939604,0.24872,3619.4,3619.3,1.091]
[1736100940100,2.57066259,3619.9,3619.1,0.67363]
[1736100940401,0.24873,3619.3,3619.2,1.091]
[1736100940601,0.62175,3619.7,3619.1,1.091]
[1736100940902,0.67363,3619.2,3619.1,1.091]
[1736100941303,0.4249,3619.2,3618.9,3.2078]
[1736100941505,0.24874,3619.0,3618.9,4.2988]
[1736100945905,0.69014,3619.0,3618.9,1.091]
[1736100946700,0.69014,3619.0,3618.6,1.2797]
[1736100946701,0.4414,3619.0,3618.6,1.2797]
[1736100947007,0.24877,3618.7,3618.6,0.4249]
[1736100947210,0.4414,3619.0,3618.5,3.2078]
[1736100947500,0.24877,3618.6,3618.5,4.2988]
[1736100947701,2.70861358,3618.9,3618.2,4.33090091]
[1736100947910,2.70861358,3618.9,3618.2,5.42190091]
[1736100947911,1.3068,3618.5,3618.2,5.42190091]
[1736100948211,0.24879,3618.3,3618.2,4.33090091]
[1736100949003,1.3068,3618.5,3618.1,1.091]
[1736100949204,0.2488,3618.2,3618.1,1.091]
[1736100949908,1.3068,3618.5,3617.8,4.2988]
[1736100949909,0.24882,3617.9,3617.8,4.2988]
[1736100950704,0.24882,3617.9,3617.8,3.2078]
[1736100953009,0.24882,3618.0,3617.8,3.2078]
[1736100953307,0.24884,3617.7,3617.4,0.4247]
[1736100953506,0.8644,3617.6,3617.4,0.4247]
[1736100954615,0.8644,3617.6,3617.5,0.24885]
[1736100959110,1.11324,3617.6,3617.4,0.67355]
[1736100959818,0.8644,3617.6,3617.4,0.4247]
[1736100960213,1.11324,3617.6,3617.4,0.67355]
[1736100962011,1.11324,3617.6,3617.5,0.24885]
[1736100963424,0.4234,3617.6,3617.5,0.24885]
[1736100963821,0.68423,3617.8,3617.4,0.4247]
[1736100964021,0.68423,3617.8,3617.6,0.24884]
[1736100965021,3.2078,3618.0,3617.4,2.51142358]
[1736100965227,0.8686,3618.4,3617.9,0.24882]
[1736100965518,7.67591559,3618.4,3618.0,0.4151]
[1736100965726,7.23241559,3618.4,3618.0,0.4151]
[1736100965923,0.4251,3618.4,3618.3,0.24879]
[1736100966120,2.14196259,3618.5,3618.1,0.4226]
[1736100966424,2.39074259,3618.5,3618.3,0.24879]
[1736100967224,0.24878,3618.5,3618.3,0.24879]
[1736100967418,0.4435,3618.7,3618.1,0.4226]
[1736100967623,0.69227,3618.7,3618.1,3.6304]
[1736100967922,0.69227,3618.7,3618.4,0.24878]
[1736100968324,0.69227,3618.7,3618.5,0.4465]
[1736100969425,0.4435,3618.7,3618.5,0.4465]
[1736100969621,0.24877,3618.6,3618.5,0.4465]
[1736100970630,0.4435,3618.7,3618.5,0.69528]
[1736100970821,0.69227,3618.7,3618.5,0.4465]
[1736100971133,0.24877,3618.6,3618.5,0.4465]
[1736100973126,0.24877,3618.6,3618.3,0.24879]
[1736100973630,0.24878,3618.5,3618.3,0.24879]
[1736100973930,0.4435,3618.7,3618.3,0.24879]
[1736100974229,0.24878,3618.6,3618.3,0.24879]
[1736100975632,0.24878,3618.6,3618.2,0.8358]
[1736100975827,0.24878,3618.6,3618.3,0.24879]
[1736100977329,0.4435,3618.7,3618.3,0.24879]
[1736100977531,0.24878,3618.6,3618.4,0.24878]
[1736100978031,0.4445,3618.8,3618.2,2.92252358]
[1736100978231,2.14196259,3619.0,3618.2,2.92252358]
[1736100978526,0.24876,3618.9,3618.3,0.24879]
[1736100978831,0.24876,3618.9,3618.6,0.24877]
[1736100979037,0.24876,3618.9,3618.7,0.4365]
[1736100979231,0.4382,3619.1,3618.7,0.4365]
[1736100979825,0.24875,3619.0,3618.7,0.68526]
[1736100980829,0.24876,3618.8,3618.7,0.4365]
[1736100982825,0.24879,3618.4,3618.1,3.8792]
[1736100983027,0.4216,3618.7,3618.2,1.091]
[1736100983224,0.4216,3618.7,3618.2,3.17772358]
[1736100983430,0.24877,3618.6,3618.3,0.24879]
[1736100983631,0.24877,3618.6,3618.4,0.4224]
[1736100984026,0.24877,3618.6,3618.5,0.4142]
[1736100984224,0.4216,3619.0,3618.5,0.4142]
[1736100984428,0.24877,3618.6,3618.5,0.4142]
[1736100984933,3.6294,3619.0,3618.2,1.091]
[1736100985234,0.24879,3618.4,3618.2,1.091]
[1736100985425,0.8714,3618.5,3618.2,1.091]
[1736100985631,0.8714,3618.5,3617.8,0.4384]
[1736100985831,7.41280623,3618.4,3617.8,0.4384]
[1736100986032,0.24882,3617.9,3617.8,0.4384]
[1736100986237,3.2078,3618.2,3617.7,4.33090091]
[1736100986238,0.24883,3617.8,3617.7,4.33090091]
[1736100986540,1.12023,3617.8,3617.7,4.33090091]
[1736100986734,1.12023,3617.8,3617.5,8.01040885]
[1736100986735,0.24884,3617.6,3617.5,1.5263]
[1736100987642,0.24884,3617.7,3617.5,1.77515]
[1736100988028,0.8714,3617.8,3617.5,1.5263]
[1736100988229,0.24884,3617.6,3617.5,1.5263]
[1736100988837,0.24884,3617.6,3617.5,0.4353]
[1736100989243,0.24884,3617.6,3617.4,0.68725]
[1736100989444,0.8714,3617.8,3617.4,0.4384]
[1736100989742,0.24884,3617.6,3617.4,0.68725]
[1736100990451,0.24885,3617.5,3617.4,0.4384]
[1736100991350,0.24885,3617.5,3617.4,0.68725]
[1736100991640,0.24885,3617.5,3617.4,0.4384]
[1736100991846,0.24886,3617.3,3617.2,3.2078]
[1736100992034,0.24886,3617.3,3617.2,0.4057]
[1736100993439,2.50252358,3617.7,3617.2,0.4057]
[1736100993746,0.24886,3617.3,3617.2,0.4057]
[1736100995046,2.39082259,3617.4,3617.2,0.4057]
[1736100995248,0.24886,3617.4,3617.2,0.4057]
[1736100996447,2.55776259,3617.7,3617.2,0.4057]
[1736100996649,0.24886,3617.4,3617.2,0.4057]
[1736100996846,2.55776259,3617.7,3617.2,0.4057]
[1736100997041,0.24886,3617.4,3617.2,0.4057]
[1736100997241,2.39080259,3617.7,3617.3,0.24886]
[1736100997444,2.39080259,3617.7,3617.4,0.24885]
[1736100997645,0.24884,3617.6,3617.3,0.24886]
[1736100998045,2.39080259,3617.7,3617.3,0.24886]
[1736100998441,2.14196259,3617.7,3617.3,0.24886]
[1736100998638,0.24885,3617.5,3617.2,0.65457]
[1736100998841,0.24885,3617.5,3617.2,0.4057]
[1736100999943,0.24885,3617.5,3617.2,0.65457]
[1736101000458,0.24885,3617.5,3617.2,0.4057]
[1736101000747,0.24886,3617.4,3617.2,0.4057]
[1736101001155,2.14196259,3617.8,3617.2,0.4057]
[1736101001449,2.14196259,3617.8,3617.7,0.24883]
[1736101002343,0.24882,3617.9,3617.7,1.06423]
[1736101002843,2.39075259,3618.3,3617.8,1.091]
[1736101003050,0.2488,3618.2,3618.0,0.24881]
[1736101004656,0.2488,3618.3,3618.0,0.24881]
[1736101005649,2.14196259,3618.5,3617.9,3.2078]
[1736101005845,2.14196259,3618.5,3618.3,3.45659]
[1736101006051,2.14196259,3618.5,3618.4,1.49719]
[1736101006447,2.14196259,3618.5,3618.4,1.2484]
[1736101006958,4.0835,3619.0,3618.4,1.49718]
[1736101006959,0.24877,3618.7,3618.4,1.49718]
[1736101007253,2.14196259,3618.8,3618.4,1.2484]
[1736101007555,0.24878,3618.6,3618.4,1.2484]
[1736101008554,0.24878,3618.5,3618.4,0.8425]
[1736101008751,0.24878,3618.5,3618.4,0.4365]
[1736101009447,0.4052,3618.7,3618.4,0.4365]
[1736101009650,0.24877,3618.6,3618.4,0.4365]
[1736101010947,2.08672358,3618.6,3618.4,0.4365]
[1736101011155,0.24878,3618.5,3618.4,0.4365]
[1736101012160,0.4052,3618.7,3618.3,3.2078]
[1736101012161,0.24879,3618.4,3618.3,3.2078]
[1736101012455,0.65659,3618.4,3618.3,3.2078]
[1736101012659,0.65659,3618.4,3618.1,1.33981]
[1736101013449,0.65659,3618.4,3618.1,1.091]
[1736101013846,0.65659,3618.4,3618.1,1.33981]
[1736101014354,0.24879,3618.3,3618.1,1.33981]
[1736101015361,0.2488,3618.2,3618.1,1.091]
[1736101017956,2.54716259,3618.7,3618.3,0.24879]
[1736101018160,0.24879,3618.4,3618.2,0.2488]
[1736101018758,0.24879,3618.3,3618.2,0.2488]
[1736101019863,0.4052,3618.7,3618.1,1.091]
[1736101020059,2.58106259,3618.9,3618.5,0.24877]
[1736101020265,0.24877,3618.7,3618.6,0.8658]
[1736101020461,0.24877,3618.7,3618.6,0.4339]
[1736101023263,2.14196259,3618.8,3618.2,0.4319]
[1736101023460,0.24878,3618.5,3618.2,1.116]
[1736101024361,0.24878,3618.5,3618.3,0.24879]
[1736101024660,0.24879,3618.3,3618.2,0.8672]
[1736101025164,0.24878,3618.5,3618.2,0.8672]
[1736101025363,2.14196259,3618.8,3618.2,2.95392358]
[1736101025563,2.14196259,3618.8,3618.7,0.24877]
[1736101026368,0.24875,3618.9,3618.7,0.24877]
[1736101026668,0.24875,3618.9,3618.7,0.66497]
[1736101027064,2.58316259,3619.2,3618.8,1.091]
[1736101027260,0.24875,3618.9,3618.8,1.5108]
[1736101028372,2.58316259,3619.2,3618.8,1.5108]
[1736101028574,2.83189259,3619.2,3619.0,0.24874]
[1736101029265,0.68993,3619.2,3619.0,0.24874]
[1736101030270,0.4412,3619.2,3619.0,0.24874]
[1736101030469,2.39068259,3619.4,3619.1,0.24873]
[1736101030668,2.39068259,3619.4,3619.2,0.65713]
[1736101030869,2.14196259,3619.4,3619.2,0.65713]
[1736101031066,5.29452358,3619.3,3618.1,9.69190885]
[1736101031264,0.4408,3619.2,3618.7,2.08672358]
[1736101031466,1.12313,3619.3,3619.0,0.24874]
[1736101031660,2.14196259,3619.4,3619.1,1.091]
[1736101031870,2.14196259,3619.4,3619.3,0.24872]
[1736101032067,2.14196259,3619.5,3619.3,0.24872]
[1736101032268,2.14196259,3619.5,3619.4,0.4103]
[1736101032565,2.39067259,3619.5,3619.4,0.4084]
[1736101033566,0.4408,3619.6,3619.4,0.4084]
[1736101033764,0.68951,3619.6,3619.4,0.4084]
[1736101033970,0.24871,3619.5,3619.4,0.4084]
[1736101035276,2.08672358,3619.5,3618.4,2.08672358]
[1736101035467,2.08672358,3619.5,3618.7,0.428]
[1736101035468,0.87052,3619.4,3618.7,0.428]
[1736101035669,0.24876,3618.8,3618.7,0.428]
[1736101037174,3.2078,3619.5,3618.7,2.51472358]
[1736101037375,2.58276259,3619.6,3619.1,0.24873]
[1736101037573,0.24872,3619.3,3619.2,0.447]
[1736101037772,0.24872,3619.5,3619.3,0.24872]
[1736101037976,0.24872,3619.5,3619.4,0.4369]
[1736101038579,0.8744,3619.7,3619.4,0.4369]
[1736101038970,0.24871,3619.6,3619.4,0.68561]
[1736101039273,1.1231,3619.7,3619.4,0.68561]
[1736101040079,0.2487,3619.6,3619.4,0.4369]
[1736101040572,1.1231,3619.7,3619.4,0.68562]
[1736101040878,0.8744,3619.7,3619.4,0.4369]
[1736101041078,0.2487,3619.6,3619.4,0.4369]
[1736101043267,0.8153,3619.9,3619.4,0.4369]
[1736101043473,0.8153,3619.9,3619.3,1.09]
[1736101043684,0.24872,3619.4,3619.3,1.09]
[1736101046276,0.24873,3619.2,3619.0,1.76794]
[1736101046472,0.24873,3619.2,3619.0,1.5192]
[1736101047075,3.2078,3619.6,3619.0,1.5192]
[1736101047270,2.14196259,3619.7,3619.0,1.5192]
[1736101047476,2.14196259,3619.7,3619.0,3.60592358]
[1736101047685,2.14196259,3619.6,3619.2,0.24873]
[1736101048076,0.24872,3619.4,3619.0,3.60592358]
[1736101048275,0.24872,3619.4,3619.1,0.24873]
[1736101048475,0.24873,3619.3,3619.1,0.24873]
[1736101048783,2.14196259,3619.6,3619.0,1.76794]
[1736101048784,0.24873,3619.2,3619.0,1.76794]
[1736101049569,4.22868617,3619.8,3619.0,1.76794]
[1736101049975,0.24874,3619.2,3619.0,1.76794]
[1736101050177,4.22868617,3619.8,3619.0,1.76794]
[1736101050375,0.24874,3619.1,3619.0,1.76794]
[1736101050679,0.24874,3619.2,3619.0,1.76794]
[1736101051687,2.14196259,3619.6,3619.0,3.60592358]
[1736101051986,0.24871,3619.5,3619.3,0.24872]
[1736101052679,2.14196259,3619.7,3619.0,3.60592358]
[1736101052883,2.14196259,3619.7,3619.5,0.24871]
[1736101052884,2.39066259,3619.7,3619.5,0.24871]